Workbook

Sheet MSU
B1: Juha Wiberg | E1: 14.05.1971
B2: SUPERPESIS | E2: Runkosarja | I2: Kärkilyönnit (KL), pesänvälit | P2: Ylempi loppusarja | W2: Alempi loppusarja | AD2: Arvo-ottelut | AH2: Mitalit
B3: Vuosi | C3: Sija | D3: Seura | E3: OTT | F3: KUN | G3: LÖI | H3: TOI | I3: KL | J3: 0 > 1 | K3: 1 > 2 | L3: 2 > 3 | M3: 3 > k | N3: KL-% | P3: OTT | Q3: KUN | R3: LÖI | S3: TOI | T3: KL | U3: KL-% | W3: OTT | X3: KUN | Y3: LÖI | Z3: TOI | AA3: KL | AB3: KL-% | AD3: IL | AE3: LL | AF3: hSM | AG3: K | AH3: H | AI3: P
B4: 1988 | C4: 5. | D4: KiU 2 | F4: suomensarja
B5: 1989 | C5: 8. | D5: KiU 2 | F5: suomensarja
B6: 1990 | C6: 9. | D6: KiPa 2 | F6: suomensarja
B7: 1991 | C7: 5. | D7: KiPa | E7: 17 | F7: 0 | G7: 4 | H7: 0 | I7: 13 | J7: 4 | K7: 3 | L7: 2 | M7: 4 | N7: 43.3 %
B8: 1992 | C8: 5. | D8: JuPa | F8: ykköspesis
B9: 1993 | C9: 4. | D9: JuPa | F9: ykköspesis
B10: 1994 | C10: 6. | D10: JuPa | F10: ykköspesis | W10: 18 | X10: 1 | Y10: 17 | Z10: 10 | AA10: 73 | AB10: 54.5 %
B11: 1995 | C11: 1. | D11: JuPa | F11: ykköspesis
B12: 1996 | C12: 9. | D12: JuPa | E12: 29 | F12: 0 | G12: 19 | H12: 13 | I12: 108 | J12: 38 | K12: 21 | L12: 30 | M12: 19 | N12: 50.9 %
B13: 1997 | C13: 13. | D13: JuPa | E13: 28 | F13: 0 | G13: 7 | H13: 12 | I13: 106 | J13: 20 | K13: 38 | L13: 41 | M13: 7 | N13: 49.5 % | W13: 4 | X13: 0 | Y13: 2 | Z13: 3 | AA13: 21 | AB13: 70.0 %
B14: 1998 | C14: 15. | D14: JuPa | E14: 28 | F14: 0 | G14: 3 | H14: 10 | I14: 111 | J14: 9 | K14: 52 | L14: 47 | M14: 3 | N14: 55.8 %
B15: 1999
B16: 2000
B17: 2001
B18: 2002 | C18: 3. | D18: JoMa | F18: ykköspesis
B19: 2003 | C19: 3. | D19: JoMa | F19: ykköspesis | W19: 7 | X19: 1 | Y19: 2 | Z19: 10 | AA19: 32 | AB19: 59.3 %
B20: Yhteensä | E20: 102 | F20: 0 | G20: 33 | H20: 35 | I20: 338 | J20: 71 | K20: 114 | L20: 120 | M20: 33 | N20: 51.6 % | P20: =SUM(P9:P19) -> 0 | Q20: =SUM(Q9:Q19) -> 0 | R20: =SUM(R9:R19) -> 0 | S20: =SUM(S9:S19) -> 0 | T20: =SUM(T9:T19) -> 0 | U20: 0.0 % | W20: =PRODUCT(E26) -> 29 | X20: =PRODUCT(F26) -> 2 | Y20: =PRODUCT(G26) -> 21 | Z20: =PRODUCT(H26) -> 23 | AA20: =PRODUCT(I26) -> 126 | AB20: =PRODUCT(N26) -> 55.9 % | AD20: 0 | AE20: 0 | AF20: 0 | AG20: 0 | AH20: 0 | AI20: 0
B21: Pesispörssi | D21: 203.7
B23: URA SUPERISSA | E23: OTT | F23: KUN | G23: LÖI | H23: TOI | I23: KL | K23: ka/L | L23: ka/T | M23: ka/KL | N23: KL-% | P23: ENSIMMÄISET RUNKOSARJASSA
B24: Runkosarja | E24: 102 | F24: 0 | G24: 33 | H24: 35 | I24: 338 | K24: 0.32 | L24: 0.34 | M24: 3.31 | N24: 51.6 % | P24: Ottelu | R24: 05.05. 1991 KPL- KiPa 1-3 | Z24: 1. ottelu | AB24: 19 v 11 kk 21 pv
B25: Ylempi loppusarja | P25: Lyöty | R25: 13.06. 1991 Lippo - KiPa 4-2 | Z25: 7. ottelu | AB25: 20 v 0 kk 30 pv
B26: Alempi loppusarja | E26: 29 | F26: 2 | G26: 21 | H26: 23 | I26: 126 | K26: 0.79 | L26: 0.79 | M26: 4.34 | N26: 55.9 % | P26: Tuotu | R26: 19.05. 1996 JuPa - Kiri 2-1 (2-5, 3-0, 3-0) | Z26: 20. ottelu | AB26: 25 v 0 kk 5 pv
B27: KAIKKI | E27: 131 | F27: 2 | G27: 54 | H27: 58 | I27: 464 | K27: 0.43 | L27: 0.44 | M27: 3.54 | N27: 52.7 % | P27: Kunnari
B29: Seurat | D29: KiU = Kiteen Urheilijat (1931)
D30: KiPa = Kiteen Pallo-90 (1990)
D31: JuPa = Juvan Pallo (1950)
D32: JoMa = Joensuun Maila (1957)

Sheet MYP, MSS
B1: Juha Wiberg | E1: 14.05.1971
B2: YKKÖSPESIS | E2: Runkosarja | L2: Runkosarja TOP-10 | Q2: Jatkosarjat | X2: SUOMENSARJA | AA2: Runkosarja | AH2: Runkosarja TOP-10 | AM2: Jatkosarjat
B3: Vuosi | C3: Sija | D3: Seura | E3: OTT | F3: KUN | G3: LÖI | H3: TOI | I3: KL | J3: KL-% | L3: LÖI | M3: TOI | N3: L+T | O3: KL | Q3: OTT | R3: KUN | S3: LÖI | T3: TOI | U3: KL | V3: KL-% | X3: Vuosi | Y3: Sija | Z3: Seura | AA3: OTT | AB3: KUN | AC3: LÖI | AD3: TOI | AE3: KL | AF3: KL-% | AH3: LÖI | AI3: TOI | AJ3: L+T | AK3: KL | AM3: OTT | AN3: KUN | AO3: LÖI | AP3: TOI | AQ3: KL | AR3: KL-%
X4: 1988 | Y4: 5. | Z4: KiU 2 | AA4: 1 | AB4: 0 | AC4: 2 | AD4: 1
X5: 1989 | Y5: 8. | Z5: KiU 2
X6: 1990 | Y6: 9. | Z6: KiPa 2 | AA6: 22 | AB6: 1 | AC6: 24 | AD6: 19
B8: 1992 | C8: 5. | D8: JuPa | E8: 26 | F8: 1 | G8: 31 | H8: 31 | I8: 141
B9: 1993 | C9: 4. | D9: JuPa | E9: 26 | F9: 3 | G9: 38 | H9: 36 | I9: 129 | L9: 8. | N9: 1.
B10: 1994 | C10: 6. | D10: JuPa | E10: 14 | F10: 2 | G10: 24 | H10: 12 | I10: 62
B11: 1995 | C11: 1. | D11: JuPa | E11: 24 | F11: 5 | G11: 34 | H11: 18 | I11: 121 | L11: 7.
B13: 2002 | C13: 7. | D13: JoMa | E13: 22 | F13: 1 | G13: 12 | H13: 9 | I13: 87 | J13: 62.6 % | K13: 139
B14: 2003 | C14: 3. | D14: JoMa | E14: 22 | F14: 2 | G14: 10 | H14: 27 | I14: 109 | J14: 66.1 % | K14: 165 | Q14: 2 | R14: 0 | S14: 0 | T14: 3 | U14: 7
B15: YHTEENSÄ | E15: =SUM(E4:E14) -> 134 | F15: =SUM(F4:F14) -> 14 | G15: =SUM(G4:G14) -> 149 | H15: =SUM(H4:H14) -> 133 | I15: =SUM(I4:I14) -> 649 | J15: 0.0 % | K15: =SUM(K4:K14) -> 304 | Q15: =SUM(Q4:Q14) -> 2 | R15: =SUM(R4:R14) -> 0 | S15: =SUM(S4:S14) -> 0 | T15: =SUM(T4:T14) -> 3 | U15: =SUM(U4:U14) -> 7 | V15: 0.0 % | W15: =SUM(W4:W14) -> 0 | X15: YHTEENSÄ | AA15: =SUM(AA4:AA14) -> 23 | AB15: =SUM(AB4:AB14) -> 1 | AC15: =SUM(AC4:AC14) -> 26 | AD15: =SUM(AD4:AD14) -> 20 | AE15: =SUM(AE4:AE14) -> 0 | AF15: 0.0 % | AG15: =SUM(AG4:AG14) -> 0 | AM15: =SUM(AM4:AM14) -> 0 | AN15: =SUM(AN4:AN14) -> 0 | AO15: =SUM(AO4:AO14) -> 0 | AP15: =SUM(AP4:AP14) -> 0 | AQ15: =SUM(AQ4:AQ14) -> 0 | AR15: 0.0 % | AS15: =SUM(AS4:AS14) -> 0
B17: KAIKKI OTTELUT | E17: OTT | F17: KUN | G17: LÖI | H17: TOI | I17: KL | J17: KL-% | L17: ka/L | M17: ka/T | N17: ka/l+t | O17: ka/kl | R17: Seurat | T17: KiU = Kiteen Urheilijat (1931)
B18: SUPERPESIS | E18: 131 | F18: 2 | G18: 54 | H18: 58 | I18: 464 | J18: 52.7 % | K18: =PRODUCT(I18/J18) -> 880.455408 | L18: =PRODUCT((F18+G18)/E18) -> 0.43 | M18: =PRODUCT(H18/E18) -> 0.44 | N18: =PRODUCT((F18+G18+H18)/E18) -> 0.87 | O18: 3.54 | T18: KiPa = Kiteen Pallo-90 (1990)
B19: YKKÖSPESIS | E19: =PRODUCT(E15+Q15) -> 136 | F19: =PRODUCT(F15+R15) -> 14 | G19: =PRODUCT(G15+S15) -> 149 | H19: =PRODUCT(H15+T15) -> 136 | I19: =PRODUCT(I15+U15) -> 656 | K19: =PRODUCT(K15+W15) -> 304 | L19: =PRODUCT((F19+G19)/E19) -> 1.20 | M19: =PRODUCT(H19/E19) -> 1.00 | N19: =PRODUCT((F19+G19+H19)/E19) -> 2.20 | O19: 4.82 | T19: JuPa = Juvan Pallo (1950)
B20: SUOMENSARJA | E20: =PRODUCT(AA15+AM15) -> 23 | F20: =PRODUCT(AB15+AN15) -> 1 | G20: =PRODUCT(AC15+AO15) -> 26 | H20: =PRODUCT(AD15+AP15) -> 20 | I20: =PRODUCT(AE15+AQ15) -> 0 | J20: 0.0 % | K20: =PRODUCT(AG15+AS15) -> 0 | L20: 0.00 | M20: 0.00 | N20: 0.00 | O20: 0.00 | T20: JoMa = Joensuun Maila (1957)
B21: YHTEENSÄ | E21: =SUM(E18:E20) -> 290 | F21: =SUM(F18:F20) -> 17 | G21: 229 | H21: 214 | I21: 1120 | K21: =SUM(K18:K20) -> 1184.455408 | L21: =PRODUCT((F21+G21)/E21) -> 0.85 | M21: =PRODUCT(H21/E21) -> 0.74 | N21: =PRODUCT((F21+G21+H21)/E21) -> 1.59 | O21: 4.19

Sheet Arvo-ottelut
B1: ITÄ - LÄNSI - KORTTI
B2: Juha Wiberg | C2: 14.05.1971
B3: C-POJAT | C3: Itä - Länsi, tulos | D3: Joukkue | E3: Seura | G3: V | H3: T | I3: H | J3: Up. | K3: Lj. | L3: Palk. | M3: O | N3: K | O3: L | P3: T | Q3: KL | R3: 1 | S3: 2 | T3: 3 | U3: k | V3: KL-% | W3: Pelinjohtaja | X3: Yleisöä
B4: 19.07. 1986 Virrat | C4: 20-9 | D4: Itä | E4: KiPa | G4: 1 | M4: 1 | O4: 3 | P4: 3 | W4: Veli Haukijärvi | X4: 235

Sheet Kärkilyönnit
B1: KÄRKILYÖNNIT RUNKOSARJASSA | V1: VUOSITTAISET SIJOITUKSET TOP - 30
G2: 0 > 1 | J2: 1 > 2 | M2: 2 > 3 | P2: 3 > k | S2: Yhteensä
B3: Vuosi | C3: Sija | D3: Seura | E3: OTT | F3: KL | G3: YHT | H3: % | I3: KL | J3: YHT | K3: % | L3: KL | M3: YHT | N3: % | O3: KL | P3: YHT | Q3: % | R3: KL | S3: YHT | T3: % | V3: Vuosi | W3: Sija | X3: Seura | Y3: 0 > 1 | Z3: 1 > 2 | AA3: 2 > 3 | AB3: 3 > k | AC3: KL
B4: 1991 | C4: 4. | D4: KiPa | E4: 17 | F4: 4 | G4: 11 | H4: =PRODUCT(F4/G4) -> 36.4 % | I4: 3 | J4: 3 | K4: =PRODUCT(I4/J4) -> 100.0 % | L4: 2 | M4: 6 | N4: =PRODUCT(L4/M4) -> 33.3 % | O4: 4 | P4: 10 | Q4: =PRODUCT(O4/P4) -> 40.0 % | R4: =PRODUCT(F4+I4+L4+O4) -> 13 | S4: =PRODUCT(G4+J4+M4+P4) -> 30 | T4: =PRODUCT(R4/S4) -> 43.3 % | V4: 1991 | W4: 4. | X4: KiPa
B5: **** | V5: ****
B6: 1996 | C6: 9. | D6: JuPa | E6: 29 | F6: 38 | G6: 71 | H6: =PRODUCT(F6/G6) -> 53.5 % | I6: 21 | J6: 49 | K6: =PRODUCT(I6/J6) -> 42.9 % | L6: 30 | M6: 51 | N6: =PRODUCT(L6/M6) -> 58.8 % | O6: 19 | P6: 41 | Q6: =PRODUCT(O6/P6) -> 46.3 % | R6: 108 | S6: =PRODUCT(G6+J6+M6+P6) -> 212 | T6: 50.9 % | V6: 1996 | W6: 9. | X6: JuPa
B7: 1997 | C7: 12. | D7: JuPa | E7: 28 | F7: 20 | G7: 42 | H7: =PRODUCT(F7/G7) -> 47.6 % | I7: 38 | J7: 71 | K7: =PRODUCT(I7/J7) -> 53.5 % | L7: 41 | M7: 62 | N7: =PRODUCT(L7/M7) -> 66.1 % | O7: 7 | P7: 39 | Q7: =PRODUCT(O7/P7) -> 17.9 % | R7: 106 | S7: =PRODUCT(G7+J7+M7+P7) -> 214 | T7: 49.5 % | V7: 1997 | W7: 12. | X7: JuPa | AA7: 24.
B8: 1998 | C8: 15. | D8: JuPa | E8: 28 | F8: 9 | G8: 28 | H8: =PRODUCT(F8/G8) -> 32.1 % | I8: 52 | J8: 79 | K8: =PRODUCT(I8/J8) -> 65.8 % | L8: 47 | M8: 76 | N8: =PRODUCT(L8/M8) -> 61.8 % | O8: 3 | P8: 16 | Q8: =PRODUCT(O8/P8) -> 18.8 % | R8: 111 | S8: =PRODUCT(G8+J8+M8+P8) -> 199 | T8: 55.8 % | V8: 1998 | W8: 15. | X8: JuPa | Z8: 18. | AA8: 13.
B9: Yhteensä | E9: =SUM(E4:E8) -> 102 | F9: =SUM(F4:F8) -> 71 | G9: =SUM(G4:G8) -> 152 | H9: =PRODUCT(F9/G9) -> 46.7 % | I9: =SUM(I4:I8) -> 114 | J9: =SUM(J4:J8) -> 202 | K9: =PRODUCT(I9/J9) -> 56.4 % | L9: =SUM(L4:L8) -> 120 | M9: =SUM(M4:M8) -> 195 | N9: =PRODUCT(L9/M9) -> 61.5 % | O9: =SUM(O4:O8) -> 33 | P9: =SUM(P4:P8) -> 106 | Q9: =PRODUCT(O9/P9) -> 31.1 % | R9: =SUM(R4:R8) -> 338 | S9: =SUM(S4:S8) -> 655 | T9: =PRODUCT(R9/S9) -> 51.6 %
